Cogmind - Beta 16 @@@ ROGUE MODE // 2025.11.13 @ 01:32:49 Player: JuustuToug Result: Destroyed by P-80 Master with Gamma Rifle Performance ------------- Evolutions (9) 4500 Regions Visited (22) 4400 Robots Destroyed (191) 955 Value Destroyed (11502) 11502 Prototype IDs (34) 680 Alien Tech Used (0) 0 Bonus (9444) 9444 TOTAL SCORE: 31481 Bonus ------- High Alert Combat Kills 3267 Follower Combat Kills 1574 Entered Garrisons 1600 Used RIF Installer 3000 Aligned with FarCom 300 Friendly Fire -297 Cogmind --------- Core Integrity 0/1600 Matter 253/300 Energy 100/100 System Corruption 7% Temperature Cool (0) Movement Core (50) Location -1/Access Parts ------- > --- POWER (2) -------- (None) > --- PROPULSION (9) --- (None) > --- UTILITY (11) ----- Improved Salvage Targeting Computer Advanced System Shield > --- WEAPON (3) ------- (None) > --- INVENTORY (5) ---- Advanced Datajack Peak State ------------ > --- POWER ------------ Quantum Reactor Light Quantum Reactor > --- PROPULSION ------- Improved Antigrav System Nuclear Pulse Array Impulse Thruster Array Impulse Thruster Array Impulse Thruster Array > --- UTILITY ---------- Medium Storage Unit Structural Scanner Improved Salvage Targeting Computer Advanced Targeting Computer Advanced Targeting Computer Advanced Melee Analysis Suite ECM Suite Improved Utility Shielding Advanced System Shield > --- WEAPON ----------- Force Lance > --- INVENTORY -------- Micro Fission Core Improved Linear Gravjet Impulse Thruster Array Nova Cannon Nova Cannon Enhanced Hardcell Cannon Enhanced Hardcell Cannon Advanced Datajack Force Lance [Rating: 126] Favorites ----------- Power Improved Deuterium Engine Engine Improved Deuterium Engine Power Core Light Fission Core Reactor Antimatter Reactor Propulsion Light Treads Treads Light Treads Leg Carbon-fiber Leg Hover Unit Improved Antigrav System Flight Unit Nuclear Pulse Array Utility High-capacity Storage Unit Device Transmission Jammer Storage High-capacity Storage Unit Processor Core Analyzer Hackware Relay Coupler [NC] Protection Layered Medium Armor Plating Weapon Advanced Plasma Cannon Energy Gun AWS/Thermal Energy Cannon Advanced Plasma Cannon Ballistic Gun KE Penetrator Ballistic Cannon Enhanced Hardcell Cannon Launcher Rocket Launcher Special Weapon Improved Remote Datajack Impact Weapon Power Maul Slashing Weapon Blade Saw Piercing Weapon Force Lance Special Melee Weapon Datajack Build | -11 -10 -10 -10 -9 -8 -8 -7 -7 -7 -7 -6 -6 -5 -5 -4 -4 -3 -3 -2 -1 -1 -1 ------- Run | Yrd Mat Min Exi Min Mat Gar Fac Gar Fac Gar Fac Gar Fac Gar Fac Gar Res Gar Res Acc Gar Acc Slots Evolved 18 | . . . . . 4 . 2 . . . 2 . 2 . 2 . 2 . 2 2 . . Power 1 | . . . . . . . . . . . . . 1 . . . . . . . . . Propulsion 7 | . . . . . 2 . . . . . 1 . . . 1 . 1 . 1 1 . . Utility 9 | . . . . . 2 . 1 . . . 1 . 1 . 1 . 1 . 1 1 . . Weapon 1 | . . . . . . . 1 . . . . . . . . . . . . . . . Parts Attached 228 | 7 6 . . 2 22 14 6 11 . 17 1 29 26 31 23 . 5 . 3 14 . 11 Power 33 | 1 2 . . . 3 2 2 . . 2 . 3 2 7 5 . 1 . . 1 . 2 Engine 20 | 1 2 . . . 2 2 2 . . 2 . 3 1 5 . . . . . . . . Core 7 | . . . . . 1 . . . . . . . 1 2 1 . 1 . . 1 . . Reactor 6 | . . . . . . . . . . . . . . . 4 . . . . . . 2 Propulsion 60 | 2 1 . . . 4 3 . 2 . 5 1 11 8 7 5 . . . 2 3 . 6 Treads 24 | 2 1 . . . 4 3 . 2 . 1 . 6 3 . . . . . 2 . . . Leg 27 | . . . . . . . . . . 4 1 5 5 7 5 . . . . . . . Wheel . | . . . . . . . . . . . . . . . . . . . . . . . Hover 3 | . . . . . . . . . . . . . . . . . . . . . . 3 Flight 6 | . . . . . . . . . . . . . . . . . . . . 3 . 3 Utility 80 | 1 2 . . . 5 3 3 7 . 7 . 9 10 14 6 . 3 . 1 8 . 1 Device 30 | . 1 . . . . 1 2 . . 3 . 6 6 3 4 . . . 1 2 . 1 Storage 6 | 1 1 . . . 1 . 1 . . . . . 1 . . . . . . 1 . . Processor 11 | . . . . . 1 1 . 1 . . . 1 1 . . . 3 . . 3 . . Hackware 15 | . . . . . 1 . . 2 . 3 . . 1 7 . . . . . 1 . . Protection 18 | . . . . . 2 1 . 4 . 1 . 2 1 4 2 . . . . 1 . . Artifact . | . . . . . . . . . . . . . . . . . . . . . . . Weapon 55 | 3 1 . . 2 10 6 1 2 . 3 . 6 6 3 7 . 1 . . 2 . 2 Energy Gun 6 | 1 . . . 1 4 . . . . . . . . . . . . . . . . . Energy Cannon 15 | . . . . . . 2 1 1 . 1 . 1 3 1 3 . 1 . . . . 1 Ballistic Gun 21 | 2 1 . . . 4 3 . . . 1 . 5 2 1 2 . . . . . . . Ballistic Cannon 1 | . . . . . . . . . . . . . . . . . . . . 1 . . Launcher 3 | . . . . 1 . . . . . 1 . . . . 1 . . . . . . . Special Weapon 1 | . . . . . . . . . . . . . . 1 . . . . . . . . Impact Weapon 3 | . . . . . 1 . . 1 . . . . . . 1 . . . . . . . Slashing Weapon 1 | . . . . . 1 . . . . . . . . . . . . . . . . . Piercing Weapon 3 | . . . . . . . . . . . . . 1 . . . . . . 1 . 1 Special Melee Weapon 1 | . . . . . . 1 . . . . . . . . . . . . . . . . Unidentified Prototypes 11 | . . . . . 5 . . . . 1 . . 3 1 . . . . 1 . . . Corrupted Parts 3 | . . . . . . . . . . 3 . . . . . . . . . . . . System Corruption 10 | . . . . . . . . . . 10 . . . . . . . . . . . . Parts Lost 72 | . 1 . . . 2 3 . 1 . 4 . 13 2 10 17 . 1 . 2 . 1 15 Power 9 | . 1 . . . 1 . . . . . . . . 2 3 . . . . . . 2 Propulsion 26 | . . . . . 1 1 . 1 . 2 . 6 . 3 4 . . . 2 . . 6 Utility 22 | . . . . . . 2 . . . 1 . 2 2 3 5 . . . . . 1 6 Weapon 15 | . . . . . . . . . . 1 . 5 . 2 5 . 1 . . . . 1 Highest Loss Streak 14 | . 1 . . . 2 1 . 1 . 2 . 5 1 6 9 . 1 . 2 . 1 14 To Critical Strikes 1 | . . . . . . . . . . . . . . . 1 . . . . . . . Average Backups 15 | 6 12 15 14 13 13 13 16 19 20 18 16 18 19 19 16 4 4 4 4 3 1 5 Power 1 | . 1 1 1 1 . 1 1 1 1 1 1 1 1 1 . . 1 2 1 . . . Propulsion 1 | 2 2 2 2 2 1 2 2 1 1 1 1 1 3 3 1 . . . . . . 1 Utility 6 | 1 3 6 5 5 3 4 7 9 11 10 10 10 8 9 9 3 2 2 2 1 . . Weapon 4 | 1 3 5 5 4 7 5 5 5 6 4 4 4 5 4 4 1 1 . . 1 1 3 Tool/Special . | . . . . . . . . . . . . . . . . . . . . . . . Unused Backups 83 | . 9 . 2 1 3 7 6 10 . 6 . 7 6 6 7 . 2 . . 3 . 8 Power 8 | . 1 . . . . 1 1 1 . 2 . . . . . . . . . 2 . . Propulsion 11 | . 3 . . . . . . . . 1 . . 1 1 . . . . . . . 5 Utility 36 | . 1 . 1 . 2 4 3 7 . 3 . 5 2 2 4 . 1 . . 1 . . Weapon 26 | . 4 . 1 1 1 2 2 2 . . . 2 3 2 3 . 1 . . . . 2 Tool/Special 2 | . . . . . . . . . . . . . . 1 . . . . . . . 1 Average Slot Usage (%) 91 | . 98 100 100 99 98 99 90 91 92 96 91 97 99 98 96 4 13 14 19 35 59 55 Engine 7 | . 14 14 14 14 8 9 7 7 7 6 6 6 7 8 1 . . . . . . . Treads 17 | . 27 28 28 28 35 35 30 30 30 8 . 9 17 . . . . . 6 . . . Leg 10 | . . . . . . . . . . 19 31 22 10 28 30 . . . . . . . Device 10 | . 13 14 14 14 . 7 13 7 7 7 13 18 14 10 14 . . . . 6 8 5 Storage 7 | . 14 14 14 14 9 9 7 7 7 7 6 6 5 5 4 . . . . . 4 3 Processor 7 | . . . . . 7 5 7 14 15 9 6 6 5 11 9 . 11 14 13 14 16 15 Hackware 2 | . . . . . 7 . . 1 . 4 . . 4 4 4 . . . . 2 4 4 Protection 5 | . . . . . 10 13 7 5 7 7 6 6 5 4 4 . . . . 2 7 3 Energy Gun 1 | . . . . 5 7 . 6 7 7 1 . . . . . . . . . . . . Energy Cannon 6 | . . . . . . 7 7 5 7 13 13 7 10 11 9 . . . . . . . Ballistic Gun 7 | . 27 28 28 15 9 8 . . . 2 6 10 5 1 4 . . . . . . . Peak Build Rating 126 | 6 9 9 10 23 26 31 47 54 54 73 71 79 91 100 111 6 32 14 26 92 100 126 Average Rating 49 | 5 7 9 9 10 22 23 43 50 53 61 70 63 75 85 102 4 14 14 23 48 91 95 On Entrance 36 | . 6 9 9 10 10 24 24 47 53 54 70 71 51 87 88 5 2 14 14 13 92 87 Avg Prop Armor Cover (%) 7 | . . . . . . . . . . 4 . 5 6 7 . . . . . . . 8 Naked Turns 59 | . . . . . . . . . . . . . . . 12 33 14 . . . . . Heaviest Build 118 | 12 32 29 29 34 41 47 73 75 75 81 81 90 93 103 118 3 25 . . 33 46 56 Greatest Support 130 | 40 40 40 40 40 80 80 80 80 80 80 82 100 113 110 130 3 3 3 54 42 42 61 Greatest Overweight (x) 8 | . 1 . . . . . . . . 2 . 2 . 1 . . 8 . . . 1 2 Average Overweight (x) . | . . . . . . . . . . . . . . . . . . . . . . . Largest Inventory Capacity 20 | 8 15 15 15 15 15 15 20 20 20 20 20 20 20 20 20 5 5 5 5 10 10 10 Average Capacity 16 | 7 14 15 15 15 15 15 17 20 20 20 20 20 20 20 19 5 5 5 5 5 10 9 Most Carried 20 | 7 15 15 15 15 15 15 20 20 20 20 17 20 20 20 20 5 5 4 5 5 2 10 Average Carried 15 | 6 12 15 14 14 14 14 17 19 20 18 16 18 19 19 18 4 4 4 4 3 1 6 Final Capacity 20 | 8 15 15 15 15 15 15 20 20 20 20 20 20 20 20 5 5 5 5 5 10 10 5 Final Carried 20 | 7 15 15 15 15 15 15 20 20 20 17 16 19 20 19 3 5 4 4 5 2 2 1 Class Distribution -------------------- 24% | Scavenger-Skirmisher 23% | Mutant 22% | Scavenger-Mutant 7% | Scavenger-Gunner 6% | Scavenger-Tank 4% | Bothacker-Skirmisher Dominant Class ---------------- Mutant | -10/Materials Mutant | -10/Mines Mutant | -10/Exiles Mutant | -9/Mines Scavenger-Mutant | -8/Materials Scavenger-Mutant | -8/Garrison Scavenger-Skirmisher | -7/Factory Scavenger-Skirmisher | -7/Garrison Bothacker-Skirmisher | -7/Factory Scavenger-Skirmisher | -7/Garrison Scavenger-Skirmisher | -6/Factory Scavenger-Skirmisher | -6/Garrison Scavenger-Skirmisher | -5/Factory Scavenger-Gunner | -5/Garrison Scavenger-Skirmisher | -4/Factory Mutant | -4/Garrison Mutant | -3/Research Mutant | -3/Garrison Mutant | -2/Research Infiltrator-Mutant | -1/Access Infiltrator-Mutant | -1/Garrison Mutant | -1/Access Resources | -11 -10 -10 -10 -9 -8 -8 -7 -7 -7 -7 -6 -6 -5 -5 -4 -4 -3 -3 -2 -1 -1 -1 ----------- Run | Yrd Mat Min Exi Min Mat Gar Fac Gar Fac Gar Fac Gar Fac Gar Fac Gar Res Gar Res Acc Gar Acc Matter Collected 5644 | 354 344 . . 148 404 403 80 219 5 471 . 791 336 946 590 . 29 . 152 106 . 266 Remotely . | . . . . . . . . . . . . . . . . . . . . . . . Salvage Created 7989 | 190 413 . . 22 966 599 230 491 . 776 . 1020 947 955 1168 . . . . 11 . 201 Parts 385 | 19 33 . . 2 45 28 13 14 . 41 . 47 46 53 34 . . . . 1 . 9 Haulers Intercepted 7 | . 2 . . . 4 . . . . . . . . . 1 . . . . . . . Recyclers Shooed 10 | . 1 . . . 4 . . . 1 . . . 3 . 1 . . . . . . . Parts Field Recycled . | . . . . . . . . . . . . . . . . . . . . . . . Retrieved Matter . | . . . . . . . . . . . . . . . . . . . . . . . Parts Self-Destructed . | . . . . . . . . . . . . . . . . . . . . . . . Prevented . | . . . . . . . . . . . . . . . . . . . . . . . Parts Restored . | . . . . . . . . . . . . . . . . . . . . . . . Kills | -11 -10 -10 -10 -9 -8 -8 -7 -7 -7 -7 -6 -6 -5 -5 -4 -4 -3 -3 -2 -1 -1 -1 ------- Run | Yrd Mat Min Exi Min Mat Gar Fac Gar Fac Gar Fac Gar Fac Gar Fac Gar Res Gar Res Acc Gar Acc Combat Hostiles Destroyed 152 | . 7 . . 8 9 13 4 12 . 22 . 18 12 24 23 . . . . . . . Melee 2 | . . . . . . 2 . . . . . . . . . . . . . . . . Guns 57 | . 7 . . 6 9 8 4 8 . 4 . 5 3 1 2 . . . . . . . Cannons 53 | . . . . . . 2 . 1 . 10 . 9 7 18 6 . . . . . . . AOE 34 | . . . . 2 . 1 . 2 . 8 . 3 2 3 13 . . . . . . . Classes Destroyed 18 | 3 5 . . 1 2 1 1 . . 1 . 1 2 . 1 . . . . . . . Worker 7 | 1 2 . . . 1 . . . . . . . . . . . . . . 1 . 2 Builder 2 | . . . . . . . . . . . . . 1 . 1 . . . . . . . Tunneler 7 | 7 . . . . . . . . . . . . . . . . . . . . . . Hauler 7 | . 2 . . . 4 . . . . . . . . . 1 . . . . . . . Recycler 7 | 1 . . . . 3 . . . . . . . 2 . . . . . . . . 1 Operator 5 | . 1 . . . 1 . . . . . . . 2 . 1 . . . . . . . Watcher 7 | . 1 . . . 2 . . . . . . . 1 . 3 . . . . . . . Swarmer 45 | . 3 . . 1 . 2 . 2 . 13 . . 2 14 8 . . . . . . . Grunt 53 | . 4 . . . 5 4 1 6 . 8 . 6 5 4 10 . . . . . . . Brawler 1 | . . . . . . . . . . . . . 1 . . . . . . . . . Duelist 3 | . . . . . . 1 . . . . . 1 . 1 . . . . . . . . Protector 1 | . . . . . . . . . . . . . . . 1 . . . . . . . Sentry 27 | . . . . . 2 6 2 4 . 1 . 6 2 3 1 . . . . . . . Specialist 2 | . . . . . . . . . . . . . . 1 1 . . . . . . . Hunter 6 | . . . . . 2 . . . . . . 3 . . 1 . . . . . . . Programmer 7 | . . . . . . . 1 . . . . 1 2 . 3 . . . . . . . Behemoth 3 | . . . . . . . . . . . . 1 . 1 1 . . . . . . . Assembled 7 | . . . . 7 . . . . . . . . . . . . . . . . . . Infiltrator 1 | . . . . . . . . . . 1 . . . . . . . . . . . . Best Kill Streak 9 | 4 3 . . 7 3 4 2 5 . 4 . 5 6 9 6 . . . . 1 . 2 Combat Bots Only 9 | . 3 . . 7 2 4 2 5 . 4 . 5 4 9 5 . . . . . . . Max Kills in Single Turn 3 | 1 1 . . 1 1 1 1 1 . 3 . 2 3 2 3 . . . . 1 . 1 Gunslinging . | . . . . . . . . . . . . . . . . . . . . . . . Exploded 3 | . . . . 1 . 1 . 1 . 3 . 1 2 2 3 . . . . . . . Melee 1 | . . . . . . 1 . . . . . . . . . . . . . . . . Uniques/NPCs Destroyed . | . . . . . . . . . . . . . . . . . . . . . . . Combat | -11 -10 -10 -10 -9 -8 -8 -7 -7 -7 -7 -6 -6 -5 -5 -4 -4 -3 -3 -2 -1 -1 -1 -------- Run | Yrd Mat Min Exi Min Mat Gar Fac Gar Fac Gar Fac Gar Fac Gar Fac Gar Res Gar Res Acc Gar Acc Hostile Shots Fired 1665 | . 59 . . 38 61 85 23 56 2 126 3 264 61 174 228 52 40 60 84 42 12 195 Missed 546 | . 17 . . 10 19 23 5 25 . 31 1 83 12 56 80 18 11 25 16 21 3 90 Hits 1119 | . 42 . . 28 42 62 18 31 2 95 2 181 49 118 148 34 29 35 68 21 9 105 Melee 33 | . . . . 1 . . . . . . . 11 . . 1 . . . . . . 20 Projectile 1086 | . 42 . . 27 42 62 18 31 2 95 2 170 49 118 147 34 29 35 68 21 9 85 AOE 2 | . . . . . . . . . . . . . . . . . . . . . . 2 Critical Strikes 40 | . 1 . . 1 1 4 1 2 . 3 . 4 1 3 3 1 . . 1 2 . 12 Actively Blocked 1 | . . . . . . . . . . . . . . . . . . . . . . 1 Part Disruptions 2 | . . . . 1 . . . . . . . . . . . . . . . . . 1 Damage Taken 21001 | . 463 . . 330 720 885 158 481 32 1376 40 2496 1233 2485 3378 612 663 657 1561 498 200 2733 Core 5409 | . 76 . . 46 110 102 5 5 22 185 . 179 62 266 560 534 398 638 606 75 . 1540 Absorbed by Shields 348 | . . . . . . . . 3 . . . 90 . . 180 41 . 34 . . . . Redirected to Shielding 101 | . . . . . . . . . . . . . . . . . . . . 15 41 45 Ignored by Resistances 62 | . . . . . . . . . . . . 62 . . . . . . . . . . Regen/Repaired (Parts) 409 | . 238 . . . 114 . 57 . . . . . . . . . . . . . . . Core Remaining (%) 56 | 100 . . . 51 . 61 . . . 69 . 78 . 67 . 4 . 20 58 . . . Volleys Fired 661 | 16 53 . . 3 58 60 4 48 5 57 4 90 70 116 71 . 1 . . 1 3 1 Largest 3 | 2 2 . . 2 2 2 1 1 1 3 1 3 3 3 3 . 1 . . 1 1 1 Hottest 231 | 40 40 . . 70 89 98 65 85 85 215 85 183 229 229 231 . 113 . . 58 58 113 Shots Fired 1271 | 32 106 . . 18 116 91 19 85 8 109 4 207 133 194 143 . 1 . . 1 3 1 Gun 571 | 32 106 . . 16 116 31 15 37 3 32 . 101 23 22 37 . . . . . . . Cannon 635 | . . . . . . 58 4 44 5 72 4 103 110 135 94 . 1 . . 1 3 1 Launcher 29 | . . . . 2 . 2 . 4 . 5 . 3 . 2 11 . . . . . . . Special 36 | . . . . . . . . . . . . . . 35 1 . . . . . . . Kinetic 426 | 32 106 . . 1 58 27 . . . 15 . 101 23 22 37 . . . . 1 3 . Thermal 780 | . . . . 15 58 62 19 81 8 89 4 103 110 135 94 . 1 . . . . 1 Explosive 29 | . . . . 2 . 2 . 4 . 5 . 3 . 2 11 . . . . . . . Electromagnetic . | . . . . . . . . . . . . . . . . . . . . . . . Robot Hit Streak 35 | 6 12 . . 5 11 12 17 35 3 18 . 12 14 11 23 . . . . . . . Robot Miss Streak 7 | 4 7 . . 2 5 3 1 1 2 3 . 4 3 3 7 . 1 . . . . . Penetration Max 1 | . . . . . 1 . . . . . . 1 1 1 1 . . . . . . . Secondary Targets 1 | . 1 . . . . . . . . . . . . . . . . . . . . . Max Gunslinging Chain 1 | . 1 . . . . . . . . . . . . . . . . . . . . . Autonomous 91 | . . . . 14 . 4 15 37 3 18 . . . . . . . . . . . . Shots Hit Robots 662 | 16 65 . . 12 81 57 14 44 3 50 . 97 58 91 68 . . . . 2 . 4 Core Hits 342 | 10 24 . . 12 37 28 6 22 1 29 . 49 31 32 59 . 1 . . 1 . . Critical Kills 6 | . . . . . . . . . . . . 2 1 . 3 . . . . . . . Critical Parts Destroyed 4 | . . . . . . . . . . 1 . 1 1 . 1 . . . . . . . Critical Strikes 19 | . . . . . 2 5 . . . 1 . 3 2 . 4 . . . . . . 2 Burn 2 | . . . . . 2 . . . . . . . . . . . . . . . . . Meltdown 3 | . . . . . . . . . . . . 1 . . 2 . . . . . . . Destroy 7 | . . . . . . . . . . 1 . 2 2 . 2 . . . . . . . Sever 5 | . . . . . . 5 . . . . . . . . . . . . . . . . Impale 2 | . . . . . . . . . . . . . . . . . . . . . . 2 Melee Attacks 84 | . . . . . 1 29 . 5 . 6 . . . . . 3 . . . 5 12 23 Impact 6 | . . . . . 1 . . 2 . . . . . . . 3 . . . . . . Slashing 26 | . . . . . . 26 . . . . . . . . . . . . . . . . Piercing 40 | . . . . . . . . . . . . . . . . . . . . 5 12 23 Sneak Attacks 8 | . . . . . . 3 . 1 . . . . . . . . . . . 1 . 3 Combat Hostiles 1 | . . . . . . . . 1 . . . . . . . . . . . . . . Follow-up Attacks . | . . . . . . . . . . . . . . . . . . . . . . . Damage Inflicted 21498 | 210 807 . . 697 1312 1199 425 1556 85 1957 6 2746 2341 2352 5236 . 6 . 1 159 . 403 Guns 7125 | 210 807 . . 321 1312 387 425 945 55 565 . 1076 367 162 493 . . . . . . . Cannons 7483 | . . . . . . 363 . 165 30 737 . 1298 1421 1945 1524 . . . . . . . Explosions 6025 | . . . . 376 . 159 . 446 . 655 . 372 553 245 3219 . . . . . . . Melee 851 | . . . . . . 290 . . . . . . . . . . . . . 159 . 402 Ramming 14 | . . . . . . . . . . . 6 . . . . . 6 . 1 . . 1 Kinetic 4224 | 210 807 . . 8 700 266 . . . 135 . 1076 367 162 493 . . . . . . . Thermal 11340 | . . . . 313 612 484 425 1110 85 1167 . 1298 1974 1945 1927 . . . . . . . Explosive 5069 | . . . . 376 . 159 . 446 . 655 . 372 . 245 2816 . . . . . . . Electromagnetic . | . . . . . . . . . . . . . . . . . . . . . . . Impact . | . . . . . . . . . . . . . . . . . . . . . . . Slashing 290 | . . . . . . 290 . . . . . . . . . . . . . . . . Piercing 561 | . . . . . . . . . . . . . . . . . . . . 159 . 402 Highest Corruption 11 | . . . . . . 1 1 1 1 11 . 2 4 4 9 9 . . . 2 2 7 Average Corruption 3 | . . . . . . 1 1 1 1 7 . 2 3 4 5 9 . . . 2 2 2 Corruption Purged . | . . . . . . . . . . . . . . . . . . . . . . . Corruption Blocked . | . . . . . . . . . . . . . . . . . . . . . . . Effects 170 | . . . . . . 10 . 11 . 41 . 14 16 43 27 2 . . . . . 6 Message Errors 40 | . . . . . . 5 . 3 . 11 . 1 5 7 7 1 . . . . . . Matter Fused 33 | . . . . . . . . 1 . 4 . 5 6 6 7 1 . . . . . 3 Heat Flow Errors 22 | . . . . . . . . 1 . 7 . 1 1 7 5 . . . . . . . Energy Discharges 27 | . . . . . . 3 . 2 . 6 . 2 1 11 1 . . . . . . 1 Parts Rejected 3 | . . . . . . . . 1 . 1 . . 1 . . . . . . . . . Parts Fused 2 | . . . . . . . . . . 1 . 1 . . . . . . . . . . Data Loss (minor) 18 | . . . . . . 1 . 1 . 4 . 3 2 4 3 . . . . . . . Data Loss (major) 5 | . . . . . . 1 . 1 . 2 . . . 1 . . . . . . . . Misfires 6 | . . . . . . . . . . . . 1 . 4 1 . . . . . . . Alerts 4 | . . . . . . . . 1 . 1 . . . . . . . . . . . 2 Weapon Failures 10 | . . . . . . . . . . 4 . . . 3 3 . . . . . . . Overload Shots . | . . . . . . . . . . . . . . . . . . . . . . . Overflow Damage 975 | . . . . . . 10 . 4 . 37 . 13 59 37 317 . . . . . . 498 Projectiles 128 | . . . . . . 5 . . . 17 . 13 36 36 21 . . . . . . . Explosions 349 | . . . . . . 5 . 4 . 20 . . 23 1 296 . . . . . . . Melee 498 | . . . . . . . . . . . . . . . . . . . . . . 498 Knockbacks . | . . . . . . . . . . . . . . . . . . . . . . . Impact . | . . . . . . . . . . . . . . . . . . . . . . . Kinetic . | . . . . . . . . . . . . . . . . . . . . . . . Secondary . | . . . . . . . . . . . . . . . . . . . . . . . Self-Inflicted Damage 527 | . . . . . . . . . . 26 . 48 251 25 137 . 3 . . 37 . . Shots 11 | . . . . . . . . . . 1 . 2 3 1 3 . . . . 1 . . Rammed 6 | . . . . . . . . . . . . . . . . . 2 . 3 . . 1 Targets Rammed 7 | . . . . . . . . . . . 1 . . . . . 2 . 3 . . 1 Kicked 1 | . . . . . . . . . . . 1 . . . . . . . . . . . Crushed . | . . . . . . . . . . . . . . . . . . . . . . . Highest Temperature 405 | . 15 . . 42 168 306 . 168 80 405 12 345 352 302 279 . 20 . . . . 14 Average Temperature 72 | . 5 . . 16 41 59 . 33 37 101 6 95 87 72 90 . 15 . . . . 10 Received Heat Transfer 3287 | . 210 . . 120 99 450 24 213 . 420 18 523 189 381 404 101 . 63 45 . . 27 Effects 12 | . . . . . . 1 . . . 4 . 1 5 . 1 . . . . . . . Shutdowns 1 | . . . . . . . . . . 1 . . . . . . . . . . . . Energy Bleed 4 | . . . . . . 1 . . . 1 . 1 . . 1 . . . . . . . Interference 6 | . . . . . . . . . . 1 . . 5 . . . . . . . . . Damage (major) 1 | . . . . . . . . . . 1 . . . . . . . . . . . . Siege Activations . | . . . . . . . . . . . . . . . . . . . . . . . Martial Activations . | . . . . . . . . . . . . . . . . . . . . . . . Shielding Activations . | . . . . . . . . . . . . . . . . . . . . . . . Robots Disrupted . | . . . . . . . . . . . . . . . . . . . . . . . Combat Hostiles . | . . . . . . . . . . . . . . . . . . . . . . . Robots Corrupted . | . . . . . . . . . . . . . . . . . . . . . . . Combat Hostiles . | . . . . . . . . . . . . . . . . . . . . . . . Parts Fried . | . . . . . . . . . . . . . . . . . . . . . . . Impact Corruptions . | . . . . . . . . . . . . . . . . . . . . . . . Robots Melted 7 | . . . . . . . . 1 . . . 1 . 2 3 . . . . . . . Combat Hostiles 6 | . . . . . . . . 1 . . . 1 . 2 2 . . . . . . . Parts Melted 32 | . . . . . 2 . 1 5 . 7 . 4 4 4 5 . . . . . . . Heat Transferred 15166 | . . . . 407 1591 684 518 1406 111 1517 . 1454 2206 2850 2422 . . . . . . . Parts Sabotaged 2 | . . . . . . . . . . . . . . . 2 . . . . . . . Parts Stolen . | . . . . . . . . . . . . . . . . . . . . . . . Parts Stripped . | . . . . . . . . . . . . . . . . . . . . . . . Power Chain Reactions . | . . . . . . . . . . . . . . . . . . . . . . . Alert | -11 -10 -10 -10 -9 -8 -8 -7 -7 -7 -7 -6 -6 -5 -5 -4 -4 -3 -3 -2 -1 -1 -1 ------- Run | Yrd Mat Min Exi Min Mat Gar Fac Gar Fac Gar Fac Gar Fac Gar Fac Gar Res Gar Res Acc Gar Acc Maximum Alert Level 5 | . . . . . . 3 2 3 2 5 3 4 3 5 5 4 3 2 1 . . . Low Security (%) 33 | 100 100 100 . 100 100 16 . . . . . . . . . . . . . 100 100 100 Level 1 5 | . . . . . . 20 24 27 . . . . . . . . . . 100 . . . Level 2 17 | . . . . . . 39 75 42 100 18 . 7 27 23 . . . 100 . . . . Level 3 24 | . . . . . . 24 . 29 . 51 100 54 72 20 14 . 100 . . . . . Level 4 12 | . . . . . . . . . . 20 . 38 . 28 38 100 . . . . . . Level 5 6 | . . . . . . . . . . 10 . . . 27 46 . . . . . . . High Security . | . . . . . . . . . . . . . . . . . . . . . . . Max Security . | . . . . . . . . . . . . . . . . . . . . . . . Peak Influence 1983 | 10 85 . . 20 154 937 495 1038 620 1692 888 1404 824 1841 1983 1365 767 569 319 143 47 187 Initial 1329 | . . . . . . 74 491 288 544 434 888 616 737 518 966 1329 767 539 319 143 12 24 Average 626 | . 20 . . 1 43 536 427 609 567 1011 884 1011 729 1190 1505 1334 747 539 291 77 32 91 Influence Increases 9506 | 45 304 . . 40 398 933 167 760 126 1398 3 978 549 1523 1727 36 2 30 . 71 38 378 Destroy 0b10 Robot/C 3900 | . 140 . . 20 180 440 80 380 60 720 . 380 240 660 600 . . . . . . . Destroy 0b10 Robot/NC 215 | 45 30 . . . 55 . . . . . . . 30 . 35 . . . . 5 . 15 Destroy Leader 538 | . 36 . . . 62 30 30 30 30 50 . 60 42 60 108 . . . . . . . Allied During Kill 687 | . . . . . . 40 2 91 30 110 . 12 . 125 277 . . . . . . . Successful Hack 121 | . 21 . . . 8 . 52 14 . . . 14 . . 12 . . . . . . . Select Force Hacks 90 | . 60 . . . 30 . . . . . . . . . . . . . . . . . Disable Machine 690 | . . . . . 45 30 . . . 30 . 30 105 75 315 . . . . 15 . 45 Anti-Garrison Action 1650 | . . . . . . 300 . 150 . 400 . 400 . 400 . . . . . . . . Destroy Structure 1120 | . 2 . . 20 3 78 3 95 6 73 3 67 132 143 380 6 2 . . 21 38 48 Partial Spotted 75 | . . . . . 15 . . . . . . . . . . . . . . 15 . 45 Lose Combat Pursuer 420 | . 15 . . . . 15 . . . 15 . 15 . 60 . 30 . 30 . 15 . 225 Influence Decreases 9476 | 45 304 . . 40 283 111 692 134 544 326 814 455 1213 422 1669 570 648 180 330 294 14 388 Entered New Map 5838 | . . . . . . 41 446 124 494 186 804 265 667 222 875 570 598 180 250 96 4 16 Time Decay 2461 | 45 294 . . 40 266 . 246 . 50 . 10 . 526 . 464 . 40 . 60 198 . 222 Lost Part 710 | . 10 . . . 10 30 . 10 . 40 . 130 20 100 170 . 10 . 20 . 10 150 Lost Ally 467 | . . . . . 7 40 . . . 100 . 60 . 100 160 . . . . . . . Squads Dispatched 26 | . 3 . . . 2 . 2 . 1 . 1 . 4 . 6 . . . 1 2 . 4 Investigation 5 | . 2 . . . 1 . 1 . . . . . . . . . . . . . . 1 Extermination 10 | . . . . . . . 1 . . . . . 2 . 3 . . . . 2 . 2 Reinforcement 5 | . 1 . . . 1 . . . . . 1 . . . . . . . 1 . . 1 Assault 5 | . . . . . . . . . . . . . 2 . 3 . . . . . . . Garrison 1 | . . . . . . . . . 1 . . . . . . . . . . . . . Intercept . | . . . . . . . . . . . . . . . . . . . . . . . Searches Triggered . | . . . . . . . . . . . . . . . . . . . . . . . Construction Impeded . | . . . . . . . . . . . . . . . . . . . . . . . Haulers Reinforced . | . . . . . . . . . . . . . . . . . . . . . . . Active Scanning Responses . | . . . . . . . . . . . . . . . . . . . . . . . Cargo Convoy Interrupts 1 | . . . . . . . . . . . . . . . 1 . . . . . . . Stealth | -11 -10 -10 -10 -9 -8 -8 -7 -7 -7 -7 -6 -6 -5 -5 -4 -4 -3 -3 -2 -1 -1 -1 --------- Run | Yrd Mat Min Exi Min Mat Gar Fac Gar Fac Gar Fac Gar Fac Gar Fac Gar Res Gar Res Acc Gar Acc Distress Signals 3 | . . . . 1 . . . . . . . . . . . . . . . 1 . 1 Communications Jammed 74 | . . . . . . . . . . . . . . . 55 . . . . 19 . . Distress Signals 54 | . . . . . . . . . . . . . . . 54 . . . . . . . Times Spotted 342 | . 18 . . 11 19 21 4 19 2 37 3 21 21 49 48 8 4 9 5 13 2 28 Peak Tracking Total 14 | . 3 . . 7 2 5 2 4 1 4 2 5 5 11 14 12 4 11 4 9 2 7 Tactical Retreats 17 | . 1 . . . . 1 . . . 1 . 1 . 2 . 1 . 1 . 1 . 8 ECM-based Alert Blocks 4 | . . . . . . . . . . . . . . . . . . . . . . 4 Traps | -11 -10 -10 -10 -9 -8 -8 -7 -7 -7 -7 -6 -6 -5 -5 -4 -4 -3 -3 -2 -1 -1 -1 ------- Run | Yrd Mat Min Exi Min Mat Gar Fac Gar Fac Gar Fac Gar Fac Gar Fac Gar Res Gar Res Acc Gar Acc Traps Triggered 32 | . 2 . . . 2 1 . 1 . 7 . 7 1 2 2 1 . 1 . 1 1 3 Indirectly . | . . . . . . . . . . . . . . . . . . . . . . . Trap Hack Attempts . | . . . . . . . . . . . . . . . . . . . . . . . Triggered . | . . . . . . . . . . . . . . . . . . . . . . . Disarmed . | . . . . . . . . . . . . . . . . . . . . . . . Reprogrammed . | . . . . . . . . . . . . . . . . . . . . . . . Reused . | . . . . . . . . . . . . . . . . . . . . . . . Traps Extracted . | . . . . . . . . . . . . . . . . . . . . . . . Installed . | . . . . . . . . . . . . . . . . . . . . . . . Triggered . | . . . . . . . . . . . . . . . . . . . . . . . Machines | -11 -10 -10 -10 -9 -8 -8 -7 -7 -7 -7 -6 -6 -5 -5 -4 -4 -3 -3 -2 -1 -1 -1 ---------- Run | Yrd Mat Min Exi Min Mat Gar Fac Gar Fac Gar Fac Gar Fac Gar Fac Gar Res Gar Res Acc Gar Acc Machines Disabled 68 | . . . . . 3 5 . 3 . 7 . 6 7 12 21 . . . . 1 . 3 Max in Single Turn 5 | . . . . . 1 1 . 1 . 1 . 1 4 1 5 . . . . 1 . 1 Garrison Access 1 | . . . . . . . . . . . . . . . . . . . . 1 . . Garrison Relay 20 | . . . . . . 3 . 3 . 5 . 4 . 5 . . . . . . . . Energy Cycler 1 | . . . . . . . . . . . . . . . . . . . . 1 . . Machines Repaired . | . . . . . . . . . . . . . . . . . . . . . . . Machines Dismantled . | . . . . . . . . . . . . . . . . . . . . . . . Machines Sabotaged . | . . . . . . . . . . . . . . . . . . . . . . . Overloaded Fab Kills . | . . . . . . . . . . . . . . . . . . . . . . . Hacking | -11 -10 -10 -10 -9 -8 -8 -7 -7 -7 -7 -6 -6 -5 -5 -4 -4 -3 -3 -2 -1 -1 -1 --------- Run | Yrd Mat Min Exi Min Mat Gar Fac Gar Fac Gar Fac Gar Fac Gar Fac Gar Res Gar Res Acc Gar Acc Machines Accessed 50 | . 9 . 1 . 7 3 5 1 1 3 1 3 6 1 6 . 1 . . 2 . . Terminals 27 | . 6 . . . 3 3 2 1 . 3 . 3 4 1 1 . . . . . . . Fabricators 3 | . . . . . . . 1 . . . . . 1 . 1 . . . . . . . Repair Stations 4 | . 1 . . . 1 . 1 . . . . . . . 1 . . . . . . . Recycling Units 3 | . 2 . . . 1 . . . . . . . . . . . . . . . . . Scanalyzers 3 | . . . . . 1 . . . . . . . . . 2 . . . . . . . Garrison Access 9 | . . . . . 1 . 1 . 1 . 1 . 1 . 1 . 1 . . 2 . . Total Hacks 109 | . 30 . 1 . 21 6 9 4 1 8 1 3 7 2 13 . 1 . . 2 . . Successful 58 | . 23 . 1 . 13 . 5 1 1 . 1 2 2 . 6 . 1 . . 2 . . Failed 49 | . 7 . . . 7 6 4 3 . 8 . 1 5 2 6 . . . . . . . Catastrophic 9 | . . . . . . 1 1 1 . 1 . 1 2 1 1 . . . . . . . Database Lockouts 2 | . . . . . 1 . . . . . . . . . 1 . . . . . . . Manual 41 | . 20 . 1 . 13 . 4 2 . . . . 1 . . . . . . . . . Terminals 66 | . 22 . . . 12 6 4 4 . 8 . 3 4 2 1 . . . . . . . Fabricators 4 | . . . . . . . 1 . . . . . 2 . 1 . . . . . . . Repair Stations 15 | . 6 . . . 4 . 3 . . . . . . . 2 . . . . . . . Recycling Units 3 | . 2 . . . 1 . . . . . . . . . . . . . . . . . Scanalyzers 11 | . . . . . 3 . . . . . . . . . 8 . . . . . . . Garrison Access 9 | . . . . . 1 . 1 . 1 . 1 . 1 . 1 . 1 . . 2 . . Terminal Hacks 10 | . 6 . 1 . . . . 1 . . . 2 . . . . . . . . . . Part Schematic 1 | . 1 . . . . . . . . . . . . . . . . . . . . . Open Door 1 | . . . . . . . . . . . . 1 . . . . . . . . . . Branch Access Points 1 | . 1 . . . . . . . . . . . . . . . . . . . . . Emergency Access Points 1 | . . . . . . . . 1 . . . . . . . . . . . . . . Terminal Index 1 | . 1 . . . . . . . . . . . . . . . . . . . . . Recall Reinforcements 1 | . 1 . . . . . . . . . . . . . . . . . . . . . Hauler Manifests 1 | . 1 . . . . . . . . . . . . . . . . . . . . . Zone Layout 1 | . 1 . . . . . . . . . . . . . . . . . . . . . Patrol Navigation 1 | . . . . . . . . . . . . 1 . . . . . . . . . . Proto ID Catalog 1 | . . . 1 . . . . . . . . . . . . . . . . . . . Fabricator Hacks 2 | . . . . . . . 1 . . . . . 1 . . . . . . . . . Build 2 | . . . . . . . 1 . . . . . 1 . . . . . . . . . Repair Station Hacks 12 | . 6 . . . 3 . 2 . . . . . . . 1 . . . . . . . Scan Component 7 | . 3 . . . 2 . 1 . . . . . . . 1 . . . . . . . Repair 5 | . 3 . . . 1 . 1 . . . . . . . . . . . . . . . Recycling Unit Hacks . | . . . . . . . . . . . . . . . . . . . . . . . Scanalyzer 6 | . . . . . 2 . . . . . . . . . 4 . . . . . . . Insert Component 2 | . . . . . . . . . . . . . . . 2 . . . . . . . Analyze 1 | . . . . . . . . . . . . . . . 1 . . . . . . . Retrieve Study 3 | . . . . . 2 . . . . . . . . . 1 . . . . . . . Garrison Access Hacks 9 | . . . . . 1 . 1 . 1 . 1 . 1 . 1 . 1 . . 2 . . Unlock Access 8 | . . . . . 1 . 1 . 1 . 1 . 1 . 1 . 1 . . 1 . . Seal Access 1 | . . . . . . . . . . . . . . . . . . . . 1 . . Unauthorized Hacks 19 | . 11 . . . 7 . 1 . . . . . . . . . . . . . . . Terminals 16 | . 9 . . . 6 . 1 . . . . . . . . . . . . . . . Assimilate 1 | . . . . . 1 . . . . . . . . . . . . . . . . . Botnet 6 | . 4 . . . 2 . . . . . . . . . . . . . . . . . Skim 9 | . 5 . . . 3 . 1 . . . . . . . . . . . . . . . Fabricators . | . . . . . . . . . . . . . . . . . . . . . . . Repair Stations . | . . . . . . . . . . . . . . . . . . . . . . . Recycling Units 3 | . 2 . . . 1 . . . . . . . . . . . . . . . . . Tunnel 3 | . 2 . . . 1 . . . . . . . . . . . . . . . . . Scanalyzers . | . . . . . . . . . . . . . . . . . . . . . . . Garrison Access . | . . . . . . . . . . . . . . . . . . . . . . . Data Cores Recovered 2 | . . . . . . . . . . . . . 1 . 1 . . . . . . . Used . | . . . . . . . . . . . . . . . . . . . . . . . Hacking Detections 37 | . 7 . . . 4 3 5 1 1 3 1 1 4 1 5 . 1 . . . . . Full Trace Events 4 | . . . . . . 1 1 . . 1 . . . 1 . . . . . . . . Feedback Events 3 | . . . . . . 2 1 . . . . . . . . . . . . . . . Corruption 2 | . . . . . . 1 1 . . . . . . . . . . . . . . . Hackware Fried 1 | . . . . . . 1 . . . . . . . . . . . . . . . . Feedback Blocked . | . . . . . . . . . . . . . . . . . . . . . . . Robot Schematics Acquired . | . . . . . . . . . . . . . . . . . . . . . . . Robots Built . | . . . . . . . . . . . . . . . . . . . . . . . Authchips . | . . . . . . . . . . . . . . . . . . . . . . . Time . | . . . . . . . . . . . . . . . . . . . . . . . Total Robot Build Rating . | . . . . . . . . . . . . . . . . . . . . . . . Part Schematics Acquired 1 | . 1 . . . . . . . . . . . . . . . . . . . . . Parts Built 3 | . . . . . . . 2 . . . . . 1 . . . . . . . . . Authchips . | . . . . . . . . . . . . . . . . . . . . . . . Time 174 | . . . . . . . 35 . . . . . 139 . . . . . . . . . Total Part Build Rating 21 | . . . . . . . 12 . . . . . 9 . . . . . . . . . Part Studies Acquired 3 | . . . . . 2 . . . . . . . . . 1 . . . . . . . Parts Repaired 5 | . 3 . . . 1 . 1 . . . . . . . . . . . . . . . Time 120 | . 78 . . . 26 . 16 . . . . . . . . . . . . . . . Parts Recycled . | . . . . . . . . . . . . . . . . . . . . . . . Recycled Matter . | . . . . . . . . . . . . . . . . . . . . . . . Retrieved Matter . | . . . . . . . . . . . . . . . . . . . . . . . Retrieved Components . | . . . . . . . . . . . . . . . . . . . . . . . Parts Scanalyzed 1 | . . . . . . . . . . . . . . . 1 . . . . . . . Part Schematics Acquired . | . . . . . . . . . . . . . . . . . . . . . . . Parts Damaged . | . . . . . . . . . . . . . . . . . . . . . . . Bothacking | -11 -10 -10 -10 -9 -8 -8 -7 -7 -7 -7 -6 -6 -5 -5 -4 -4 -3 -3 -2 -1 -1 -1 ------------ Run | Yrd Mat Min Exi Min Mat Gar Fac Gar Fac Gar Fac Gar Fac Gar Fac Gar Res Gar Res Acc Gar Acc Used RIF Installer 6 | . . . . . . 1 . 1 . 1 . 1 . 1 . 1 . . . . . . Coupler Efficiency 1 | . . . . . . . . 1 . . . . . . . . . . . . . . Hotswap 1 | . . . . . . . . . . . . . . 1 . . . . . . . . Robot Detection 1 | . . . . . . . . . . 1 . . . . . . . . . . . . Watcher Feeds 1 | . . . . . . . . . . . . 1 . . . . . . . . . . Autooverride 1 | . . . . . . . . . . . . . . . . 1 . . . . . . Robots Hacked 18 | . . . . . . . . 2 . 4 . . . 12 . . . . . . . . Non-combat . | . . . . . . . . . . . . . . . . . . . . . . . Combat 18 | . . . . . . . . 2 . 4 . . . 12 . . . . . . . . Robot Hacks Applied 19 | . . . . . . . . 3 . 4 . . . 12 . . . . . . . . disrupt_area 1 | . . . . . . . . 1 . . . . . . . . . . . . . . overwrite_iff 1 | . . . . . . . . 1 . . . . . . . . . . . . . . formatsys_high 17 | . . . . . . . . 1 . 4 . . . 12 . . . . . . . . Relay Couplers Released 83 | . . . . . . 13 . 12 . 22 . 17 . 19 . . . . . . . . Machine Destruction 83 | . . . . . . 13 . 12 . 22 . 17 . 19 . . . . . . . . Attached 13 | . . . . . . . . 2 . 3 . . 1 7 . . . . . . . . Fabnet Peak Effective % . | . . . . . . . . . . . . . . . . . . . . . . . Robots Rewired 11 | . . . . . . 2 1 . . . . 3 . 5 . . . . . . . . Allies Hacked 1 | . . . . . . . . . . . . . . . 1 . . . . . . . Hacks Repelled . | . . . . . . . . . . . . . . . . . . . . . . . Allies | -11 -10 -10 -10 -9 -8 -8 -7 -7 -7 -7 -6 -6 -5 -5 -4 -4 -3 -3 -2 -1 -1 -1 -------- Run | Yrd Mat Min Exi Min Mat Gar Fac Gar Fac Gar Fac Gar Fac Gar Fac Gar Res Gar Res Acc Gar Acc Total Allies 32 | . . . . . 1 2 1 4 . 4 . 3 . 17 . . . . . . . . Largest Group 12 | . . . . . 1 2 1 3 3 4 . 3 . 12 12 . . . . . . . Highest-Rated Group 461 | . . . . . 10 70 16 222 222 238 . 130 . 461 461 . . . . . . . Highest-Rated Ally 95 | . . . . . 10 39 16 95 95 95 . 46 . 49 49 . . . . . . . Total Orders 2 | . . . . . . . . . . . . . . 2 . . . . . . . . STAY 1 | . . . . . . . . . . . . . . 1 . . . . . . . . FOLLOW 1 | . . . . . . . . . . . . . . 1 . . . . . . . . Ally Attacks 233 | . . . . . . 38 1 18 8 58 . 14 . 32 64 . . . . . . . Total Damage 6190 | . . . . . . 491 . 904 295 1285 . 464 . 1026 1725 . . . . . . . Kills 51 | . . . . . . 9 . 7 3 14 . 1 . 9 8 . . . . . . . Allies Corrupted 3 | . . . . . . . . . . 1 . . . 1 1 . . . . . . . Allies Melted . | . . . . . . . . . . . . . . . . . . . . . . . Intel | -11 -10 -10 -10 -9 -8 -8 -7 -7 -7 -7 -6 -6 -5 -5 -4 -4 -3 -3 -2 -1 -1 -1 ------- Run | Yrd Mat Min Exi Min Mat Gar Fac Gar Fac Gar Fac Gar Fac Gar Fac Gar Res Gar Res Acc Gar Acc Active Infowar (turns) 13196 | . 1217 95 380 789 1833 246 423 1171 101 399 1 1513 1450 1644 1034 . . . . 400 107 393 A.S.S. 1 | . . . . . . . . . . . . . . 1 . . . . . . . . Terrain 1514 | . . . . . . . . . . . . . 554 . 960 . . . . . . . Structural 664 | . . . . . . . . . . . . . . . . . . . . 400 2 262 Seismic 2653 | . 1217 95 380 789 172 . . . . . . . . . . . . . . . . . T.N.C. 1907 | . . . . . 1661 246 . . . . . . . . . . . . . . . . Spoofing 2 | . . . . . . . . . . 2 . . . . . . . . . . . . Jamming 8176 | . . . . . . . 423 1171 101 397 1 1513 1443 1643 1030 . . . . 198 107 149 ECM 75 | . . . . . . . . . . . . . . . . . . . . . . 75 Robot Analysis Total . | . . . . . . . . . . . . . . . . . . . . . . . Derelict Logs Recovered 1 | . . 1 . . . . . . . . . . . . . . . . . . . . Drone Launches . | . . . . . . . . . . . . . . . . . . . . . . . Drone Recoveries . | . . . . . . . . . . . . . . . . . . . . . . . Exploration | -11 -10 -10 -10 -9 -8 -8 -7 -7 -7 -7 -6 -6 -5 -5 -4 -4 -3 -3 -2 -1 -1 -1 ------------- Run | Yrd Mat Min Exi Min Mat Gar Fac Gar Fac Gar Fac Gar Fac Gar Fac Gar Res Gar Res Acc Gar Acc Turns Passed 17464 | 467 1263 95 380 789 1923 1438 531 1173 101 1540 37 1963 1463 1657 1172 146 92 125 125 402 107 475 Spaces Moved 9839 | 220 538 58 237 205 689 697 257 574 57 639 25 823 695 871 775 226 125 205 67 746 145 965 Core 972 | 8 . . . . . . . . . . . . . . 27 226 125 205 17 306 . 58 Treads 4358 | 212 538 58 237 205 689 697 257 574 57 236 . 183 365 . . . . . 50 . . . Legs 3017 | . . . . . . . . . . 403 25 640 330 871 748 . . . . . . . Wheels . | . . . . . . . . . . . . . . . . . . . . . . . Hover 1 | . . . . . . . . . . . . . . . . . . . . . . 1 Flight 1491 | . . . . . . . . . . . . . . . . . . . . 440 145 906 Fastest Speed 33 | 50 160 160 160 160 160 160 160 160 160 160 96 96 122 114 50 50 50 50 50 35 35 33 Average Speed 125 | 156 160 160 160 160 160 160 160 160 160 188 96 175 142 130 109 50 54 50 139 42 35 36 Slowest Speed 450 | 160 240 160 160 160 160 160 160 160 160 270 96 260 162 193 115 50 450 50 170 50 115 200 Overloaded Moves . | . . . . . . . . . . . . . . . . . . . . . . . Propulsion Burnouts . | . . . . . . . . . . . . . . . . . . . . . . . Robots Hopped 19 | . . . . . . . . . . . . . . . . . . . . 4 2 13 Potential Cave-ins 4 | . . . . . . . . . . . . . 2 . . . . . . . 2 . Cave-ins Triggered 1 | . . . . . . . . . . . . . . . 1 . . . . . . . Exploration Rate (%) 37 | 10 76 14 62 47 50 82 7 75 2 76 2 78 26 80 31 37 5 28 2 18 18 27 Regions Visited 22 Branch Regions 3 Pre-discovered Areas 3 | . 2 . . . 1 . . . . . . . . . . . . . . . . . Known Exits Taken 9 | . 1 . . . 1 . 1 . 1 . 1 . 1 . 1 . 1 . . 1 . . Unknown Exits Taken 5 | 1 . 1 1 1 . . . . . . . . . . . . . . 1 . . . Scrap Searched 2 | . . . . 2 . . . . . . . . . . . . . . . . . . Spaces Dug 190 | . . . . . . 1 2 3 2 10 3 3 42 7 83 3 . . . 2 13 16 Terrain Destroyed 450 | . . . . 27 . 7 3 9 3 12 3 8 71 17 252 3 1 . . 5 13 16 Melee 32 | . . . . . . . . 1 . . . . . . . 3 . . . 2 10 16 Projectile 128 | . . . . 3 . . 3 . 3 1 3 1 56 11 43 . 1 . . . 3 . AOE 290 | . . . . 24 . 7 . 8 . 11 . 7 15 6 209 . . . . 3 . . Terrain Rammed . | . . . . . . . . . . . . . . . . . . . . . . . Walls Destroyed . | . . . . . . . . . . . . . . . . . . . . . . . Machines Disabled . | . . . . . . . . . . . . . . . . . . . . . . . Actions | -11 -10 -10 -10 -9 -8 -8 -7 -7 -7 -7 -6 -6 -5 -5 -4 -4 -3 -3 -2 -1 -1 -1 --------- Run | Yrd Mat Min Exi Min Mat Gar Fac Gar Fac Gar Fac Gar Fac Gar Fac Gar Res Gar Res Acc Gar Acc Total 13753 | 311 841 60 239 663 1402 886 377 784 63 887 33 1183 1063 1249 980 252 148 226 96 815 171 1024 Wait 2172 | 56 201 3 . 443 580 40 81 95 . 91 3 98 184 157 50 13 3 12 17 35 2 8 Move 9786 | 219 537 57 236 204 689 696 256 573 56 638 24 822 695 870 775 225 125 204 66 738 140 941 Hop 17 | . . . . . . . . . . . . . . . . . . . . 4 2 11 Pick Up 286 | 13 27 . 1 4 21 18 15 21 1 23 . 37 30 31 11 2 2 . 4 9 . 16 Fast Attach 58 | . 1 . . . 9 2 2 . . . . 2 11 5 8 . 4 . 2 7 . 5 Attach 131 | 6 9 . . 3 9 7 1 2 . 12 1 19 8 12 18 . 4 . 1 10 1 8 Detach 13 | . . . . . 1 . . . . . . . . . 5 . 4 . . 2 1 . Swap 157 | 1 1 . . 2 11 14 4 19 . 22 . 16 23 25 18 . . . . . . 1 Drop 243 | . 12 . 2 4 23 20 12 20 1 13 . 22 42 28 24 1 3 . 3 4 . 9 Fire 661 | 16 53 . . 3 58 60 4 48 5 57 4 90 70 116 71 . 1 . . 1 3 1 Melee 84 | . . . . . 1 29 . 5 . 6 . . . . . 3 . . . 5 12 23 Ram 3 | . . . . . . . . . . . . . . . . . 2 . . . . 1 Kick 1 | . . . . . . . . . . . 1 . . . . . . . . . . . Crush 3 | . . . . . . . . . . . . . . . . . . . 3 . . . Escape Stasis 79 | . . . . . . . . . . 21 . 25 . 5 . 8 . 10 . . 10 . Rewire 59 | . . . . . . . 2 1 . 4 . 52 . . . . . . . . . . Trap . | . . . . . . . . . . . . . . . . . . . . . . . Miscellaneous . | . . . . . . . . . . . . . . . . . . . . . . . Route ------- -11/Scrapyard -10/Materials (discovered 6 exits: *Mat x3 / *Min x2 / Sub) -10/Mines -10/Exiles -9/Mines -8/Materials -8/Garrison (discovered 3 exits: *Fac x3) -7/Factory -7/Garrison (discovered 2 exits: *Fac x2) -7/Factory -7/Garrison (discovered 3 exits: *Fac x3) -6/Factory -6/Garrison (discovered 3 exits: *Fac x3) -5/Factory -5/Garrison (discovered 3 exits: *Fac x3) -4/Factory -4/Garrison -3/Research -3/Garrison -2/Research -1/Access -1/Garrison -1/Access History --------- Turn | Location | Event 4 | -11/Scrapyard | Discovered new exit (range 15) 468 | -11/Scrapyard | Entered Materials 469 | -10/Materials | Build established: Mutant 1063 | -10/Materials | Discovered new exit (range 13) 1256 | -10/Materials | Learned 2 Mines zone layouts 1333 | -10/Materials | Learned location of 2 exits from Subcaves 1341 | -10/Materials | Discovered new exit (range 7) 1399 | -10/Materials | Identified exit to Subcaves 1399 | -10/Materials | Identified exit to Mines 1454 | -10/Materials | Identified exit to Materials 1549 | -10/Materials | Learned Storage emergency access door positions 1583 | -10/Materials | Repaired Lgt. Treads 1609 | -10/Materials | Learned Storage stockpile data 1610 | -10/Materials | Repaired Lgt. Treads 1637 | -10/Materials | Repaired Assault Rifle 1731 | -10/Materials | Entered Mines 1741 | -10/Mines | Met a Derelict bent on vengeance 1744 | -10/Mines | Learned Materials garrison access intel 1806 | -10/Mines | Deemed a non-threat by the Exiles lab entrance 1806 | -10/Mines | Discovered new exit (range 5) 1826 | -10/Mines | Entered Exiles 1870 | -10/Exiles | Met 8R-AWN 1890 | -10/Exiles | Met EX-HEX 1938 | -10/Exiles | Met EX-BIN 1958 | -10/Exiles | Aligned with FarCom system 1959 | -10/Exiles | Given EX-Vault access code 1998 | -10/Exiles | Opened EX-Vault 2008 | -10/Exiles | Found AWS/Thermal 2043 | -10/Exiles | Warned to stay clear of 0b10 Research branches 2065 | -10/Exiles | Exiles lab attacked by MAIN.C 2192 | -10/Exiles | Discovered new exit (range 10) 2206 | -10/Exiles | Left Exiles lab with AWS/Thermal 2206 | -10/Exiles | Entered Mines 2207 | -9/Mines | Assembled infested the area 2347 | -9/Mines | Destroyed 7 combat bots 2985 | -9/Mines | Discovered new exit (range 6) 2995 | -9/Mines | Entered Materials 2995 | -8/Materials | Evolved 4 slots: Propulsion x2, Utility x2 2996 | -8/Materials | Loaded intel: 1 garrison access location 3545 | -8/Materials | Build established: Scavenger-Mutant 3557 | -8/Materials | Central database locked down 4732 | -8/Materials | Repaired Lgt. Treads 4918 | -8/Materials | Identified exit to Garrison 4918 | -8/Materials | Entered Garrison 4965 | -8/Garrison | Hacking Suite fried by hacking feedback 5329 | -8/Garrison | Garrison Relay disabled 5458 | -8/Garrison | Triggered checkpoint 5476 | -8/Garrison | Triggered checkpoint 5645 | -8/Garrison | Triggered checkpoint 5683 | -8/Garrison | Garrison Relay disabled 5728 | -8/Garrison | Discovered new exit (range 3) 5734 | -8/Garrison | Identified exit to Factory 5961 | -8/Garrison | Discovered exit to Factory (range 12) 5975 | -8/Garrison | Installed Relay Interface Framework 6004 | -8/Garrison | Triggered checkpoint 6031 | -8/Garrison | Garrison Relay disabled 6192 | -8/Garrison | Triggered checkpoint 6323 | -8/Garrison | Discovered exit to Factory (range 12) 6326 | -8/Garrison | Triggered checkpoint 6356 | -8/Garrison | Entered Factory 6356 | -7/Factory | Evolved 2 slots: Utility x1, Weapon x1 6439 | -7/Factory | Fabricated Imp. Transmission Jammer (x2) 6644 | -7/Factory | Build established: Scavenger-Skirmisher 6662 | -7/Factory | Repaired Rocket Launcher+ 6829 | -7/Factory | P-60 Hacker assimilated allied Trooper 4a 6877 | -7/Factory | Identified exit to Garrison 6887 | -7/Factory | Entered Garrison 6963 | -7/Garrison | Triggered checkpoint 7037 | -7/Garrison | Garrison Relay disabled 7258 | -7/Garrison | Expanded RIF knowledge: Coupler Efficiency 7401 | -7/Garrison | Triggered checkpoint 7407 | -7/Garrison | Triggered checkpoint 7486 | -7/Garrison | Garrison Relay disabled 7541 | -7/Garrison | Discovered new exit (range 10) 7554 | -7/Garrison | Identified exit to Factory 7574 | -7/Garrison | Found embedded Infiltrators 7579 | -7/Garrison | Triggered checkpoint 7733 | -7/Garrison | Triggered checkpoint 7801 | -7/Garrison | Triggered checkpoint 7909 | -7/Garrison | Triggered checkpoint 7914 | -7/Garrison | Garrison Relay disabled 8038 | -7/Garrison | Discovered exit to Factory (range 10) 8060 | -7/Garrison | Entered Factory 8060 | -7/Factory | Accompanied by 3 allies 8152 | -7/Factory | Garrison activated, responded to threat 8154 | -7/Factory | Identified exit to Garrison 8161 | -7/Factory | Entered Garrison 8161 | -7/Garrison | Accompanied by 3 allies 8193 | -7/Garrison | Triggered checkpoint 8221 | -7/Garrison | Triggered checkpoint 8235 | -7/Garrison | Garrison Relay disabled 8452 | -7/Garrison | AWS/Thermal suddenly broke down 8487 | -7/Garrison | Triggered checkpoint 8624 | -7/Garrison | Garrison Relay disabled 8780 | -7/Garrison | System corruption reached 10% 8817 | -7/Garrison | Triggered checkpoint 8860 | -7/Garrison | Discovered new exit (range 8) 8963 | -7/Garrison | Triggered checkpoint 8989 | -7/Garrison | Garrison Relay disabled 9112 | -7/Garrison | Triggered checkpoint 9182 | -7/Garrison | Discovered new exit (range 8) 9212 | -7/Garrison | Build established: Scavenger-Mutant 9451 | -7/Garrison | Triggered checkpoint 9525 | -7/Garrison | Triggered checkpoint 9593 | -7/Garrison | Build established: Scavenger-Skirmisher 9601 | -7/Garrison | Expanded RIF knowledge: Robot Detection 9634 | -7/Garrison | Garrison Relay disabled 9681 | -7/Garrison | Discovered new exit (range 8) 9701 | -7/Garrison | Entered Factory 9701 | -6/Factory | Evolved 2 slots: Propulsion x1, Utility x1 9730 | -6/Factory | Identified exit to Garrison 9738 | -6/Factory | Entered Garrison 9820 | -6/Garrison | Triggered checkpoint 9826 | -6/Garrison | Garrison Relay disabled 9876 | -6/Garrison | Garrison Relay disabled 10068 | -6/Garrison | Build established: Scavenger-Tank 10172 | -6/Garrison | Triggered checkpoint 10264 | -6/Garrison | Spotted B-75 Beast 10306 | -6/Garrison | Destroyed B-75 Beast 10382 | -6/Garrison | Triggered checkpoint 10476 | -6/Garrison | Triggered checkpoint 10551 | -6/Garrison | Lost 5 parts (1n1u3w) 10596 | -6/Garrison | Discovered new exit (range 3) 10792 | -6/Garrison | Triggered checkpoint 10880 | -6/Garrison | Garrison Relay disabled 10891 | -6/Garrison | Build established: Scavenger-Skirmisher 11122 | -6/Garrison | Discovered new exit (range 10) 11266 | -6/Garrison | Triggered checkpoint 11326 | -6/Garrison | Triggered checkpoint 11407 | -6/Garrison | Expanded RIF knowledge: Watcher Feeds 11450 | -6/Garrison | Triggered checkpoint 11550 | -6/Garrison | Garrison Relay disabled 11614 | -6/Garrison | Discovered new exit (range 9) 11701 | -6/Garrison | Entered Factory 11701 | -5/Factory | Evolved 2 slots: Power x1, Utility x1 12274 | -5/Factory | Fabricated Centrium Leg (x1) 12301 | -5/Factory | First assault squad dispatched 12930 | -5/Factory | Build established: Bothacker-Skirmisher 13164 | -5/Factory | Identified exit to Garrison 13164 | -5/Factory | Entered Garrison 13230 | -5/Garrison | Triggered checkpoint 13250 | -5/Garrison | H-XX Assembler disabled 13254 | -5/Garrison | Build established: Bothacker-Gunner 13308 | -5/Garrison | Found Prototype Device 13308 | -5/Garrison | Identified Active Sensor Suite 13356 | -5/Garrison | Garrison Relay disabled 13545 | -5/Garrison | Triggered checkpoint 13563 | -5/Garrison | Spotted B-75 Beast 13623 | -5/Garrison | Destroyed 9 combat bots 13649 | -5/Garrison | Destroyed B-75 Beast 13660 | -5/Garrison | Lost 6 parts (2p2n2w) 13863 | -5/Garrison | Build established: Scavenger-Gunner 13864 | -5/Garrison | Garrison Relay disabled 14096 | -5/Garrison | Discovered new exit (range 10) 14288 | -5/Garrison | Discovered new exit (range 11) 14324 | -5/Garrison | Triggered checkpoint 14347 | -5/Garrison | Garrison Relay disabled 14348 | -5/Garrison | Triggered checkpoint 14416 | -5/Garrison | Garrison Relay disabled 14528 | -5/Garrison | Triggered checkpoint 14667 | -5/Garrison | Triggered checkpoint 14693 | -5/Garrison | Garrison Relay disabled 14721 | -5/Garrison | Build established: Commander-Gunner 14747 | -5/Garrison | Expanded RIF knowledge: Hotswap 14779 | -5/Garrison | Discovered new exit (range 10) 14821 | -5/Garrison | Entered Factory 14821 | -4/Factory | Accompanied by 12 allies 14821 | -4/Factory | Evolved 2 slots: Propulsion x1, Utility x1 14879 | -4/Factory | Found Quantum Capacitor 14950 | -4/Factory | Lost 3 allies 15071 | -4/Factory | First assault squad dispatched 15125 | -4/Factory | P-70 Sage assimilated allied Sentinel 6d 15151 | -4/Factory | Build established: Commander-Skirmisher 15237 | -4/Factory | Central database locked down 15487 | -4/Factory | Crushed by falling debris 15509 | -4/Factory | Build established: Scavenger-Skirmisher 15810 | -4/Factory | Spotted B-86 Titan 15860 | -4/Factory | Destroyed B-86 Titan 15890 | -4/Factory | Lost 6 parts (2p3u1w) 15975 | -4/Factory | Cargo convoy interrupted 15977 | -4/Factory | Released all parts (9) 15993 | -4/Factory | Identified exit to Garrison 15993 | -4/Factory | Entered Garrison 16004 | -4/Garrison | Spotted B-90 Cyclops 16008 | -4/Garrison | Lost 9 parts (1p4n1u3w) 16073 | -4/Garrison | Core integrity fell below 50% 16105 | -4/Garrison | Triggered checkpoint 16116 | -4/Garrison | Core integrity fell below 20% 16130 | -4/Garrison | Expanded RIF knowledge: Autooverride 16133 | -4/Garrison | Discovered new exit (range 12) 16139 | -4/Garrison | Entered Research 16139 | -3/Research | Evolved 2 slots: Propulsion x1, Utility x1 16231 | -3/Research | Identified exit to Garrison 16231 | -3/Research | Entered Garrison 16238 | -3/Garrison | Build established: Mutant 16249 | -3/Garrison | Spotted B-75 Beast 16250 | -3/Garrison | Spotted B-86 Titan 16327 | -3/Garrison | Triggered checkpoint 16328 | -3/Garrison | Core integrity fell below 50% 16340 | -3/Garrison | Discovered new exit (range 10) 16356 | -3/Garrison | Entered Research 16356 | -2/Research | Evolved 2 slots: Propulsion x1, Utility x1 16452 | -2/Research | Discovered new exit (range 15) 16481 | -2/Research | Entered Access 16481 | -1/Access | Evolved 2 slots: Propulsion x1, Utility x1 16595 | -1/Access | Energy Cycler disabled 16848 | -1/Access | Spotted B-99 Colossus 16883 | -1/Access | Identified exit to Garrison 16883 | -1/Access | Entered Garrison 16947 | -1/Garrison | Build established: Infiltrator-Mutant 16957 | -1/Garrison | Triggered checkpoint 16975 | -1/Garrison | Discovered new exit (range 10) 16990 | -1/Garrison | Entered Access 17256 | -1/Access | Spotted B-99 Colossus 17399 | -1/Access | Build established: Mutant 17425 | -1/Access | Spotted B-99 Colossus 17426 | -1/Access | Spotted B-99 Colossus 17428 | -1/Access | Core integrity fell below 50% 17437 | -1/Access | Core integrity fell below 20% 17465 | -1/Access | Destroyed by P-80 Master with Gamma Rifle Last Messages --------------- crushing effect. 17433_ Slug penetrates Wall. 17433_ Adv. Targeting Computer destroyed. 17433_ Penetrated by Slug. 17433_ Impulse Thruster Array destroyed. 17433_ Slug penetrates Wall. 17434_ C-57 Dissector system terminally corrupted. 17435_ Dropped Force Lance. 17436_ Knocked back. 17436_ Slug penetrates Wall. 17436_ Penetrated by Slug. 17437_ Acquired 1 matter. 17439_ ECM Suite destroyed. 17441_ Adv. Targeting Computer destroyed. 17442_ Penetrated by Slug. 17445_ System corrupted: Matter fused (-9). 17461_ Slammed into P-80 Master. 17463_ System corrupted: IFF burst signal emitted. Map ----- +----------------------------------------------------+ | ???????????????????## # ##### ## | | ?????????#####?###### # + ## | | ?????????#####?###### # ######## ## | | ?????????## ## ] # ######## ## | | ?????????## ## #####"####????## + | | ?????????## ## # ## ????## ###### | | ?????????## " ## # + ????? ###### | | ?????????## """ ## # ##?????### ##??## | | ?????????## """ ## # ##? ##?### ##??## | | ????????? + " ## # ##? ##???#/##??## | | ?????????## ## # ### # ??? ??## | | ??????##### ## ####+##### # ???? ???## | | ??????#########+#########+## # ???? ???## | | ? # ???? ???## | | ? + ????" ??## | | ? "" # ?????????## | | ?##### ##################+## "" # ?????????## | | ? # ############ # T" # ?????????## | | ????????????????????? # "" # ????????## | | ?????????????????## # "" ############# | | ?????????????????## # ############ | | ?????????#####???## # + | | ?????????# ?########### ## | | ?????????# ##### # ######### ## | | ?????????# # = ######### ## | | ?????????# " "@ ##?????## ## | | ?????????# C ###+##### ##?????## ## | | ?????????# ##### p # ## ##?????## ## | | ?????????# ????######p### ## ######### ## | | ????????????????????### ## ## ######### ## | | ??????????????????????# ## ## ## # ## | | ??????????????????????# ## +h h + # ## | | ??????????????????????# ## ###### # ## | | ??????????????????????# ############## + | | ??????????????????????# ###??????????# # | | ?????????????????????## !##???????????# # | | ?????????????????????######????????????######## | | ????????????????#######"###??????????????###### ## | | ????????????# #??????????????????## ## | | ????????????????######### #???????????????????# #? | | ????????????????????????# #?????########??????# #? | | ????????????????????????# #?????# ] #??????# #? | | ????????????????????????# #?????# #??????# #? | | ????????????????????????# #?????# = #??????# #? | | ????????????????????????# #?????# #??????# #? | | ????????????????????????# #?????# #??????# #? | | ????????????????????????# #?????# #??????# #? | | ??????????????????????### #########+########### #? | | ???????????????? " + #? | | ??????????????????????############# #? | +----------------------------------------------------+ Best States ------------- Heat Dissipation 74 Energy Generation 45 Energy Capacity 550 Matter Stores 300 Matter Capacity 300 Sight Range 16 Terrain Scan Range 20 Terrain Scan Density 10 ECM Strength 1 Jamming Range 16 Armor Coverage 450 Resistance: TH 20 Utility Shielding 66 Phase Shifting 10 Evasion (%) 63 Targeting Accuracy 16 Melee Accuracy 8 Core Analysis 6 Recoil Reduction 5 Kinecelleration 40 Salvage Targeting 6 Offensive Hacking 10 Defensive Hacking 14 Relay Coupler Types 2 Relay Coupler Value 73 Item Schematics ----------------- Hcp. Storage Unit | -10/Materials | Hacked Robot Schematics ------------------ None Fabricated ------------ Imp. Transmission Jammer | x2 | -7/Factory | Preloaded Centrium Leg | x1 | -5/Factory | Preloaded Repaired ---------- Lgt. Treads | 35% | -10/Materials Lgt. Treads | 52% | -10/Materials Assault Rifle | 19% | -10/Materials Lgt. Treads | 18% | -8/Materials Rocket Launcher | 18% | -7/Factory Studied --------- Rocket Launcher | -8/Materials | Hacked Hvy. Assault Rifle | -8/Materials | Hacked Myomer Leg | -4/Factory | Hacked Alien Tech Used ----------------- None Achievements -------------- Some Acronyms Are Better Than Others Challenges ------------ None Game ------ Seed ThiefAnalysisTurbovents Manual? 0 Play Time 02:41:36 Cumulative 183.1 hours Start 2025.11.12 @ 22:43:43 End 2025.11.13 @ 01:32:49 Sessions 1 Manual Loads 0 Difficulty Rogue Special Mode None Game No. 126 Rogue 126 Adventurer 0 Explorer 0 Win Type - Total 6 Types 4/0/1/1/0/0/0/0/0/0 Lore% 82 Gallery% 74 Achievement% 55 Wizard Run 0 Options --------- Layout 1 ASCII 0 Keyboard 0 Movement Mouse Keybinds 0 Fullscreen 2 Font 24/Smallcaps Map View 50x35 Zoom Use 0% Tactical HUD 1 Map Filters NONE Filters NONE Steam 1 RUN: cc40c7e3-1ef6-4b5f-a99a-90733a6125aa